fUSD/lending_fUSD_20241011
["ID","MTS","AMOUNT","RATE_DAILY","PERIOD"]
[340132315,1728667843867,-500.0,0.0002,2]
[340132316,1728667843877,-500.0,0.0002,2]
[340132317,1728667843887,-500.0,0.0002,2]
[340132318,1728667843896,-500.0,0.0002,2]
[340132319,1728667843906,-500.0,0.0002,2]
[340132320,1728667843915,-500.0,0.0002,2]
[340132321,1728667843924,-316.27325348,0.0002,2]
[340132322,1728667843936,-183.72674652,0.0002,2]
[340132323,1728667843945,-491.01706514,0.0002,2]
[340132324,1728667843957,-8.98293486,0.0002,2]
[340132325,1728667843966,-500.0,0.0002,2]
[340132326,1728667843975,-151.20706514,0.0002,2]
[340132327,1728667843985,-348.79293486,0.0002,2]
[340132328,1728667843994,-500.0,0.0002,2]
[340132329,1728667844003,-500.0,0.0002,2]
[340132330,1728667844012,-500.0,0.0002,2]
[340132331,1728667844021,-355.66130161,0.0002,2]
[340132339,1728667845876,-144.33869839,0.0002,2]
[340132340,1728667845886,-190.89576489,0.0002,2]
[340132341,1728667845898,-309.10423511,0.0002,2]
[340132342,1728667845908,-500.0,0.0002,2]
[340132343,1728667845917,-269.46649497,0.0002,2]
[340132344,1728667845928,-230.53350503,0.0002,2]
[340132345,1728667845938,-39.60149285,0.0002,2]
[340132346,1728667845949,-315.79999999,0.0002,2]
[340132347,1728667845962,-144.59850716,0.0002,2]
[340132348,1728667845971,-500.0,0.0002,2]
[340132349,1728667845979,-500.0,0.0002,2]
[340132350,1728667845989,-500.0,0.0002,2]
[340132351,1728667845998,-500.0,0.0002,2]
[340132352,1728667846007,-500.0,0.0002,2]
[340132353,1728667846016,-500.0,0.0002,2]
[340132354,1728667846025,-500.0,0.0002,2]
[340132355,1728667846034,-800.0,0.0002,2]
[340132356,1728667846043,-2000.0,0.0002,2]
[340132357,1728667846052,-296.335287,0.0002,2]
[340132358,1728667846063,-150.0,0.0002,2]
[340132359,1728667846072,-150.0,0.0002,2]
[340132360,1728667846082,-150.49600462,0.0002,2]
[340132361,1728667846091,-295.12411498,0.0002,2]
[340132362,1728667846100,-150.0,0.0002,2]
[340132363,1728667846110,-150.78556663,0.0002,2]
[340132364,1728667846120,-150.0,0.0002,2]
[340132366,1728667846129,-150.0,0.0002,2]
[340132367,1728667846140,-150.0,0.0002,2]
[340132368,1728667846149,-150.0,0.0002,2]
[340132369,1728667846158,-151.35549024,0.0002,2]
[340132370,1728667846167,-150.0,0.0002,2]
[340132371,1728667846177,-164.18176555,0.0002,2]
[340132372,1728667846186,-150.49443801,0.0002,2]
[340132373,1728667846195,-150.0,0.0002,2]
[340132374,1728667846204,-150.0,0.0002,2]
[340132375,1728667846214,-3791.13440763,0.0002,2]
[340132376,1728667846223,-6653.0,0.0002,2]
[340132377,1728667846232,-3950.0,0.0002,2]
[340132378,1728667846242,-22524.51845012,0.0002,2]
[340132379,1728667846252,-584.44175325,0.0002,2]
[340132380,1728667846261,-226.08,0.0002,2]
[340132381,1728667846271,-226.08,0.0002,2]
[340132382,1728667846433,-226.08,0.0002,2]
[340132383,1728667846444,-226.08,0.0002,2]
[340132384,1728667846455,-226.08,0.0002,2]
[340132385,1728667846464,-226.08,0.0002,2]
[340132386,1728667846474,-226.08,0.0002,2]
[340132387,1728667846483,-226.08,0.0002,2]
[340132388,1728667846492,-226.08,0.0002,2]
[340132389,1728667846502,-226.08,0.0002,2]
[340132390,1728667846513,-1000.0,0.0002,2]
[340132391,1728667846522,-500.0,0.0002,2]
[340132392,1728667846533,-500.0,0.0002,2]
[340132393,1728667846543,-500.0,0.0002,2]
[340132394,1728667846553,-500.0,0.0002,2]
[340132395,1728667846563,-500.0,0.0002,2]
[340132396,1728667846573,-2000.0,0.0002001,2]
[340132397,1728667846582,-150.0,0.0002001,2]
[340132398,1728667846592,-500.0,0.0002001,2]
[340132399,1728667846601,-167.0,0.00020012,2]
[340132400,1728667846611,-3775.923317,0.0002002,2]
[340132401,1728667846620,-500.0,0.0002002,2]
[340132402,1728667846629,-500.0,0.0002002,2]
[340132403,1728667846640,-500.0,0.0002002,2]
[340132404,1728667846649,-500.0,0.0002002,2]
[340132405,1728667846658,-500.0,0.0002002,2]
[340132406,1728667846668,-500.0,0.0002002,2]
[340132407,1728667846677,-500.0,0.0002002,2]
[340132408,1728667846687,-500.0,0.0002002,2]
[340132409,1728667846696,-473.85380349,0.0002002,2]
[340132410,1728667846709,-26.14619651,0.0002002,2]
[340132411,1728667846718,-500.0,0.0002002,2]
[340132412,1728667846727,-500.0,0.0002002,2]
[340132413,1728667846737,-500.0,0.0002002,2]
[340132414,1728667846746,-500.0,0.0002002,2]
[340132415,1728667846757,-500.0,0.0002002,2]
[340132416,1728667846767,-500.0,0.0002002,2]
[340132417,1728667846776,-262.47496216,0.0002002,2]
[340132418,1728667846791,-237.52503784,0.0002002,2]
[340132419,1728667846801,-500.0,0.0002002,2]
[340132420,1728667846810,-500.0,0.0002002,2]
[340132421,1728667846819,-308.19996216,0.0002002,2]
[340132422,1728667846838,-296.24147391,0.0002,2]
[340132423,1728667846850,-203.75852609,0.0002,2]
[340132424,1728667846859,-191.80003784,0.0002002,2]
[340132425,1728667846869,-500.0,0.0002002,2]
[340132426,1728667846878,-500.0,0.0002002,2]
[340132427,1728667846888,-500.0,0.0002002,2]
[340132428,1728667846898,-500.0,0.0002002,2]
[340132429,1728667846907,-500.0,0.0002002,2]
[340132430,1728667846917,-500.0,0.0002002,2]
[340132431,1728667846926,-500.0,0.0002002,2]
[340132432,1728667846935,-500.0,0.0002002,2]
[340132433,1728667846945,-500.0,0.0002002,2]
[340132434,1728667846954,-500.0,0.0002002,2]
[340132435,1728667846963,-500.0,0.0002002,2]
[340132436,1728667846974,-500.0,0.0002002,2]
[340132437,1728667846983,-500.0,0.0002002,2]
[340132438,1728667846993,-500.0,0.0002002,2]
[340132439,1728667847003,-500.0,0.0002002,2]
[340132440,1728667847011,-500.0,0.0002002,2]
[340132441,1728667847021,-500.0,0.0002002,2]
[340132442,1728667847031,-500.0,0.0002002,2]
[340132443,1728667847042,-500.0,0.0002002,2]
[340132444,1728667847051,-500.0,0.0002002,2]
[340132445,1728667847062,-500.0,0.0002002,2]
[340132446,1728667847071,-500.0,0.0002002,2]
[340132447,1728667847080,-500.0,0.0002002,2]
[340132448,1728667847090,-500.0,0.0002002,2]
[340132449,1728667847099,-88.55381685,0.0002002,2]
[340132450,1728667847329,-411.44618315,0.0002002,2]
[340132451,1728667847339,-500.0,0.0002002,2]
[340132452,1728667847348,-500.0,0.0002002,2]
[340132453,1728667847358,-238.79619741,0.0002002,2]
[340132455,1728667999225,156.02,0.00010959,2]
[340132773,1728669031989,-168.52,0.00014233,2]
[340132774,1728669031998,-185.80862337,0.000149,2]
[340132775,1728669032007,-1320.23693451,0.00015,2]
[340132776,1728669032018,-1539.6573271,0.00015,2]
[340132777,1728669032029,-714.46336982,0.00015,2]
[340132778,1728669032040,-5956.64236857,0.00015,2]
[340132779,1728669032050,-300.0,0.00015811,2]
[340132780,1728669032059,-500.66,0.00015813,2]
[340132781,1728669032068,-500.0,0.00016184,2]
[340132782,1728669032077,-500.0,0.00016184,2]
[340132783,1728669032086,-500.0,0.00016184,2]
[340132784,1728669032097,-175.44,0.00016438,2]
[340132785,1728669032107,-185.80862337,0.0001648,2]
[340132786,1728669032297,-1088.43,0.00016519,5]
[340132787,1728669032307,-15440.66,0.00016519,2]
[340132788,1728669032317,-5285.71,0.00016519,2]
[340132789,1728669032326,-184.22,0.00016519,2]
[340132790,1728669032335,-5985.7,0.00016519,2]
[340132791,1728669032344,-499.99,0.00016579,2]
[340132792,1728669032355,-1000.0,0.00016579,2]
[340132793,1728669032365,-1103.27955385,0.00016579,2]
[340132794,1728669032376,-721.49044615,0.00016579,2]
[340132795,1728669032385,-1000.0,0.0001658,2]
[340132796,1728669032396,-150.69,0.0001658,2]
[340132797,1728669032406,-150.0,0.00016937,2]
[340132798,1728669032417,-420.0,0.0001729,2]
[340132799,1728669032426,-2751.0,0.00017619,2]
[340132800,1728669032435,-150.0,0.00017642,2]
[340132801,1728669032445,-270.55,0.00017738,2]
[340132802,1728669032453,-405.24,0.00017752,2]
[340132803,1728669032464,-250.0,0.00017759,2]
[340132804,1728669032475,-518.62,0.00017761,2]
[340132805,1728669032484,-23900.0,0.00017779,2]
[340132806,1728669032493,-250.0,0.0001779,2]
[340132807,1728669032502,-414.01989049,0.00017804,2]
[340132808,1728669032512,-200.0,0.00017819,2]
[340132809,1728669032521,-150.0,0.00017844,2]
[340132810,1728669032530,-250.0,0.00017896,2]
[340132811,1728669032540,-1006.0,0.00017963,2]
[340132812,1728669032548,-414.01989049,0.00017976,2]
[340132813,1728669032557,-500.66,0.00018077,2]
[340132814,1728669032567,-150.0,0.00018114,2]
[340132815,1728669032576,-218.538,0.00018169,2]
[340132816,1728669032585,-163.113,0.00018169,2]
[340132817,1728669032596,-375.75096231,0.00018259,2]
[340132818,1728669032608,-38.26892818,0.00018259,2]
[340132819,1728669032618,-1907.1495,0.00018261,2]
[340132820,1728669032627,-1000.0,0.00018299,2]
[340132821,1728669032636,-178.8,0.00018307,2]
[340132822,1728669032645,-17032.99,0.00018356,2]
[340132823,1728669032655,-414.01989049,0.00018515,2]
[340132824,1728669032663,-150.0,0.00018585,2]
[340132825,1728669032672,-1000.0,0.00018652,2]
[340132826,1728669032683,-151.65,0.00018656,2]
[340132827,1728669032692,-150.0,0.0001874,2]
[340132828,1728669032701,-414.01989049,0.00018761,2]
[340132829,1728669032711,-299.99,0.00018798,4]
[340132830,1728669032720,-587.0,0.00018907,2]
[340132831,1728669032728,-313.84249262,0.00018924,2]
[340132832,1728669032738,-500.0,0.00018924,2]
[340132833,1728669032747,-500.0,0.00018924,2]
[340132834,1728669032756,-5152.6246,0.00018959,2]
[340132835,1728669032766,-1000.0,0.00019,2]
[340132836,1728669032776,-150.0,0.00019056,2]
[340132837,1728669032785,-414.01989049,0.00019163,2]
[340132838,1728669032794,-186.53,0.00019198,2]
[340132839,1728669032803,-300.0,0.00019223,2]
[340132840,1728669032812,-414.01989049,0.00019237,2]
[340132841,1728669032821,-156.02,0.00019361,2]
[340132842,1728669032831,-414.01989049,0.00019513,2]
[340132843,1728669032840,-150.0,0.00019527,2]
[340132844,1728669032849,-11397.42,0.0001953,2]
[340132845,1728669032858,-180.0,0.00019587,2]
[340132846,1728669032867,-151.65,0.00019588,2]
[340132847,1728669032877,-262.2927,0.0001968,2]
[340132848,1728669032887,-500.0,0.0001969,2]
[340132849,1728669032896,-217.0,0.000197,2]
[340132850,1728669032905,-346.33242329,0.00019765,2]
[340132851,1728669032914,-150.0,0.00019781,4]
[340132852,1728669032923,-150.23271,0.0001982,2]
[340132853,1728669032934,-2000.0,0.0001985,2]
[340132854,1728669032943,-414.01989049,0.00019871,2]
[340132855,1728669032953,-2183.253,0.000199,2]
[340132856,1728669032966,-1322.655431,0.000199,2]
[340132857,1728669032975,-651.65426798,0.00019916,2]
[340132858,1728669032984,-351.0336,0.0001992,2]
[340132859,1728669032994,-1613.68454534,0.0001992,2]
[340132860,1728669033004,-1000.0,0.0001992,2]
[340132861,1728669033013,-1000.0,0.0001992,2]
[340132862,1728669033022,-1000.0,0.0001992,2]
[340132863,1728669033033,-1000.0,0.0001992,2]
[340132864,1728669033042,-1000.0,0.0001992,2]
[340132865,1728669033052,-279.21321479,0.0001992,2]
[340132866,1728669033063,-720.78678521,0.0001992,2]
[340132867,1728669033073,-300.80412424,0.0001992,2]
[340132868,1728669033084,-409.52347203,0.0001992,2]
[340132869,1728669033095,-289.67240373,0.0001992,2]
[340132870,1728669033104,-1000.0,0.0001992,2]
[340132871,1728669033114,-1000.0,0.0001992,2]
[340132872,1728669033123,-585.4671,0.0001992,2]
[340132873,1728669033133,-150.0,0.00019999,2]
[340132874,1728669033142,-792.76970947,0.0002,7]
[340132875,1728669033153,-814.99724662,0.0002,7]
[340132876,1728669033169,-555.249,0.0002,7]
[340132877,1728669033180,-4507.06363913,0.0002,7]
[340132878,1728669033192,-687.15034836,0.0002,7]
[340132879,1728669033203,-29954.30071245,0.0002,7]
[340132880,1728669033215,-3600.0,0.0002,7]
[340132881,1728669033233,-1335.27392991,0.0002,7]
[340132882,1728669033243,-3186.53480063,0.0002,7]
[340132883,1728669033254,-6278.08455896,0.0002,7]
[340132884,1728669033265,-7776.89948567,0.0002,7]
[340132885,1728669033276,-1249.78872132,0.0002,7]
[340132886,1728669033287,-752.17210597,0.0002,7]
[340132887,1728669033298,-564.77321908,0.0002,7]
[340132888,1728669033316,-499.915646,0.0002,7]
[340132889,1728669033327,-3133.18062,0.0002,7]
[340132890,1728669033342,-1096.40924013,0.0002,7]
[340132891,1728669033353,-393.3952172,0.0002,7]
[340132892,1728669033364,-1080.79234568,0.0002,7]
[340132893,1728669033375,-1028.79,0.0002,7]
[340132894,1728669033385,-6246.33253183,0.0002,7]
[340132895,1728669033396,-9669.50989184,0.0002,7]
[340132896,1728669033407,-960.92161359,0.0002,7]
[340132903,1728669038278,-13835.69541616,0.0002,7]
[340132904,1728669038288,-428.0,0.0002,2]
[340132905,1728669038298,-150.0,0.0002,2]
[340132906,1728669038308,-1000.0,0.0002,2]
[340132907,1728669038318,-150.0,0.0002,2]
[340132908,1728669038327,-27091.9956316,0.0002,4]
[340132909,1728669038336,-54183.9912632,0.0002001,4]
[340132910,1728669038346,-2092.3331671,0.00020016,2]
[340132911,1728669038355,-162.5043638,0.00020016,2]
[340132912,1728669038365,-500.0,0.00020018,2]
[340132913,1728669038375,-306.87748689,0.00020018,2]
[340132914,1728669038384,-412.60561762,0.00020019,2]
[340132915,1728669038393,-153.58102654,0.00020019,2]
[340132916,1728669038403,-515.82247687,0.00020019,2]
[340132917,1728669038412,-500.0,0.0002002,2]
[340132918,1728669038421,-500.0,0.0002002,2]
[340132919,1728669038431,-500.0,0.0002002,2]
[340132920,1728669038441,-500.0,0.0002002,2]
[340132921,1728669038451,-500.0,0.0002002,2]
[340132922,1728669038460,-500.0,0.0002002,2]
[340132923,1728669038469,-500.0,0.0002002,2]
[340132924,1728669038478,-500.0,0.0002002,2]
[340132925,1728669038488,-500.0,0.0002002,2]
[340132926,1728669038497,-500.0,0.0002002,2]
[340132927,1728669038506,-500.0,0.0002002,2]
[340132928,1728669038515,-500.0,0.0002002,2]
[340132929,1728669038525,-500.0,0.0002002,2]
[340132930,1728669038534,-500.0,0.0002002,2]
[340132931,1728669038543,-500.0,0.0002002,2]
[340132932,1728669038552,-500.0,0.0002002,2]
[340132933,1728669038562,-500.0,0.0002002,2]
[340132934,1728669038572,-500.0,0.0002002,2]
[340132935,1728669038581,-500.0,0.0002002,2]
[340132936,1728669038590,-500.0,0.0002002,2]
[340132937,1728669038599,-500.0,0.0002002,2]
[340132938,1728669038609,-500.0,0.0002002,2]
[340132939,1728669038617,-500.0,0.0002002,2]
[340132940,1728669038626,-500.0,0.0002002,2]
[340132941,1728669038635,-500.0,0.0002002,2]
[340132942,1728669038644,-500.0,0.0002002,2]
[340132943,1728669038654,-500.0,0.0002002,2]
[340132944,1728669038663,-500.0,0.0002002,2]
[340132945,1728669038672,-500.0,0.0002002,2]
[340132946,1728669038681,-500.0,0.0002002,2]
[340132947,1728669038691,-500.0,0.0002002,2]
[340132949,1728669038700,-500.0,0.0002002,2]
[340132951,1728669038710,-500.0,0.0002002,2]
[340132953,1728669038719,-500.0,0.0002002,2]
[340132955,1728669038728,-500.0,0.0002002,2]
[340132956,1728669038737,-500.0,0.0002002,2]
[340132957,1728669038747,-500.0,0.0002002,2]
[340132958,1728669038756,-500.0,0.0002002,2]
[340132959,1728669038766,-500.0,0.0002002,2]
[340132960,1728669038775,-500.0,0.0002002,2]
[340132961,1728669038784,-500.0,0.0002002,2]
[340132962,1728669038793,-500.0,0.0002002,2]
[340132963,1728669038802,-500.0,0.0002002,2]
[340132964,1728669038811,-500.0,0.0002002,2]
[340132965,1728669038821,-500.0,0.0002002,2]
[340132966,1728669038830,-500.0,0.0002002,2]
[340132967,1728669038840,-500.0,0.0002002,2]
[340132968,1728669038849,-500.0,0.0002002,2]
[340132969,1728669038858,-500.0,0.0002002,2]
[340132970,1728669038868,-500.0,0.0002002,2]
[340132971,1728669038877,-500.0,0.0002002,2]
[340132972,1728669038887,-500.0,0.0002002,2]
[340132974,1728669038896,-500.0,0.0002002,2]
[340132976,1728669038905,-500.0,0.0002002,2]
[340132978,1728669038915,-500.0,0.0002002,2]
[340132980,1728669038924,-500.0,0.0002002,2]
[340132981,1728669038934,-500.0,0.0002002,2]
[340132984,1728669038945,-500.0,0.0002002,2]
[340132985,1728669038955,-500.0,0.0002002,2]
[340132986,1728669038968,-500.0,0.0002002,2]
[340132987,1728669038977,-500.0,0.0002002,2]
[340132988,1728669038987,-500.0,0.0002002,2]
[340132989,1728669038995,-500.0,0.0002002,2]
[340132990,1728669039005,-500.0,0.0002002,2]
[340132991,1728669039015,-500.0,0.0002002,2]
[340132992,1728669039024,-500.0,0.0002002,2]
[340132993,1728669039033,-500.0,0.0002002,2]
[340132994,1728669039044,-500.0,0.0002002,2]
[340132995,1728669039054,-500.0,0.0002002,2]
[340132996,1728669039064,-500.0,0.0002002,2]
[340132997,1728669039074,-500.0,0.0002002,2]
[340132998,1728669039083,-500.0,0.0002002,2]
[340132999,1728669039093,-500.0,0.0002002,2]
[340133000,1728669039102,-500.0,0.0002002,2]
[340133001,1728669039112,-500.0,0.0002002,2]
[340133002,1728669039121,-500.0,0.0002002,2]
[340133003,1728669039131,-500.0,0.0002002,2]
[340133004,1728669039141,-500.0,0.0002002,2]
[340133005,1728669039150,-500.0,0.0002002,2]
[340133006,1728669039159,-500.0,0.0002002,2]
[340133007,1728669039169,-500.0,0.0002002,2]
[340133008,1728669039178,-500.0,0.0002002,2]
[340133009,1728669039188,-500.0,0.0002002,2]
[340133010,1728669039198,-500.0,0.0002002,2]
[340133011,1728669039207,-500.0,0.0002002,2]
[340133012,1728669039216,-500.0,0.0002002,2]
[340133013,1728669039226,-500.0,0.0002002,2]
[340133014,1728669039235,-500.0,0.0002002,2]
[340133015,1728669039245,-500.0,0.0002002,2]
[340133016,1728669039254,-500.0,0.0002002,2]
[340133017,1728669039264,-500.0,0.0002002,2]
[340133018,1728669039273,-500.0,0.0002002,2]
[340133019,1728669039282,-500.0,0.0002002,2]
[340133020,1728669039291,-500.0,0.0002002,2]
[340133021,1728669039301,-500.0,0.0002002,2]
[340133022,1728669039311,-500.0,0.0002002,2]
[340133023,1728669039320,-500.0,0.0002002,2]
[340133024,1728669039329,-500.0,0.0002002,2]
[340133025,1728669039338,-500.0,0.0002002,2]
[340133026,1728669039347,-500.0,0.0002002,2]
[340133027,1728669039356,-500.0,0.0002002,2]
[340133028,1728669039365,-500.0,0.0002002,2]
[340133029,1728669039374,-500.0,0.0002002,2]
[340133030,1728669039388,-500.0,0.0002002,2]
[340133031,1728669039397,-500.0,0.0002002,2]
[340133032,1728669039407,-500.0,0.0002002,2]
[340133033,1728669039416,-500.0,0.0002002,2]
[340133034,1728669039426,-500.0,0.0002002,2]
[340133035,1728669039435,-500.0,0.0002002,2]
[340133036,1728669039445,-500.0,0.0002002,2]
[340133037,1728669039455,-500.0,0.0002002,2]
[340133038,1728669039464,-500.0,0.0002002,2]
[340133039,1728669039473,-500.0,0.0002002,2]
[340133040,1728669039483,-500.0,0.0002002,2]
[340133041,1728669039492,-500.0,0.0002002,2]
[340133042,1728669039501,-500.0,0.0002002,2]
[340133043,1728669039511,-500.0,0.0002002,2]
[340133044,1728669039520,-500.0,0.0002002,2]
[340133045,1728669039529,-500.0,0.0002002,2]
[340133046,1728669039539,-500.0,0.0002002,2]
[340133047,1728669039549,-500.0,0.0002002,2]
[340133048,1728669039558,-500.0,0.0002002,2]
[340133049,1728669039568,-500.0,0.0002002,2]
[340133050,1728669039578,-500.0,0.0002002,2]
[340133051,1728669039588,-500.0,0.0002002,2]
[340133052,1728669039599,-500.0,0.0002002,2]
[340133053,1728669039608,-500.0,0.0002002,2]
[340133054,1728669039618,-500.0,0.0002002,2]
[340133055,1728669039627,-500.0,0.0002002,2]
[340133056,1728669039637,-500.0,0.0002002,2]
[340133057,1728669039647,-500.0,0.0002002,2]
[340133058,1728669039657,-500.0,0.0002002,2]
[340133059,1728669039666,-500.0,0.0002002,2]
[340133060,1728669039676,-500.0,0.0002002,2]
[340133061,1728669039685,-500.0,0.0002002,2]
[340133062,1728669039695,-500.0,0.0002002,2]
[340133063,1728669039704,-500.0,0.0002002,2]
[340133064,1728669039713,-500.0,0.0002002,2]
[340133065,1728669039723,-500.0,0.0002002,2]
[340133066,1728669039732,-500.0,0.0002002,2]
[340133067,1728669039742,-500.0,0.0002002,2]
[340133068,1728669039752,-500.0,0.0002002,2]
[340133069,1728669039761,-500.0,0.0002002,2]
[340133070,1728669039771,-500.0,0.0002002,2]
[340133071,1728669039781,-500.0,0.0002002,2]
[340133072,1728669039791,-500.0,0.0002002,2]
[340133073,1728669039800,-500.0,0.0002002,2]
[340133074,1728669039810,-500.0,0.0002002,2]
[340133075,1728669039819,-500.0,0.0002002,2]
[340133076,1728669039829,-500.0,0.0002002,2]
[340133077,1728669039839,-500.0,0.0002002,2]
[340133078,1728669039848,-500.0,0.0002002,2]
[340133079,1728669039859,-500.0,0.0002002,2]
[340133080,1728669039869,-500.0,0.0002002,2]
[340133082,1728669039879,-500.0,0.0002002,2]
[340133083,1728669039889,-500.0,0.0002002,2]
[340133084,1728669039898,-500.0,0.0002002,2]
[340133086,1728669039908,-500.0,0.0002002,2]
[340133087,1728669039919,-500.0,0.0002002,2]
[340133089,1728669039929,-500.0,0.0002002,2]
[340133090,1728669039938,-500.0,0.0002002,2]
[340133091,1728669039948,-500.0,0.0002002,2]
[340133092,1728669039959,-500.0,0.0002002,2]
[340133093,1728669039970,-150.0,0.0002002,2]
[340133094,1728669039980,-150.0,0.0002002,2]
[340133095,1728669039990,-500.0,0.0002002,2]
[340133096,1728669040000,-500.0,0.0002002,2]
[340133097,1728669040009,-500.0,0.0002002,2]
[340133099,1728669040020,-500.0,0.0002002,2]
[340133101,1728669040194,-500.0,0.0002002,2]
[340133102,1728669040204,-500.0,0.0002002,2]
[340133103,1728669040215,-500.0,0.0002002,2]
[340133104,1728669040224,-500.0,0.0002002,2]
[340133105,1728669040234,-500.0,0.0002002,2]
[340133106,1728669040242,-500.0,0.0002002,2]
[340133107,1728669040252,-500.0,0.0002002,2]
[340133108,1728669040262,-500.0,0.0002002,2]
[340133109,1728669040271,-500.0,0.0002002,2]
[340133110,1728669040281,-500.0,0.0002002,2]
[340133111,1728669040290,-500.0,0.0002002,2]
[340133112,1728669040299,-500.0,0.0002002,2]
[340133113,1728669040309,-500.0,0.0002002,2]
[340133114,1728669040318,-500.0,0.0002002,2]
[340133115,1728669040327,-500.0,0.0002002,2]
[340133116,1728669040337,-500.0,0.0002002,2]
[340133117,1728669040346,-500.0,0.0002002,2]
[340133118,1728669040355,-500.0,0.0002002,2]
[340133119,1728669040364,-500.0,0.0002002,2]
[340133120,1728669040374,-500.0,0.0002002,2]
[340133121,1728669040384,-500.0,0.0002002,2]
[340133122,1728669040393,-500.0,0.0002002,2]
[340133123,1728669040402,-500.0,0.0002002,2]
[340133124,1728669040412,-500.0,0.0002002,2]
[340133125,1728669040421,-500.0,0.0002002,2]
[340133126,1728669040431,-150.0,0.0002002,2]
[340133127,1728669040440,-500.0,0.0002002,2]
[340133128,1728669040450,-500.0,0.0002002,2]
[340133129,1728669040459,-500.0,0.0002002,2]
[340133130,1728669040468,-500.0,0.0002002,2]
[340133131,1728669040477,-500.0,0.0002002,2]
[340133132,1728669040487,-500.0,0.0002002,2]
[340133134,1728669040496,-500.0,0.0002002,2]
[340133136,1728669040506,-500.0,0.0002002,2]
[340133138,1728669040515,-500.0,0.0002002,2]
[340133139,1728669040525,-500.0,0.0002002,2]
[340133141,1728669040534,-500.0,0.0002002,2]
[340133143,1728669040543,-500.0,0.0002002,2]
[340133145,1728669040553,-500.0,0.0002002,2]
[340133147,1728669040562,-500.0,0.0002002,2]
[340133148,1728669040571,-500.0,0.0002002,2]
[340133150,1728669040581,-500.0,0.0002002,2]
[340133152,1728669040590,-500.0,0.0002002,2]
[340133154,1728669040600,-500.0,0.0002002,2]
[340133156,1728669040609,-500.0,0.0002002,2]
[340133158,1728669040618,-500.0,0.0002002,2]
[340133160,1728669040627,-500.0,0.0002002,2]
[340133162,1728669040637,-500.0,0.0002002,2]
[340133164,1728669040646,-500.0,0.0002002,2]
[340133166,1728669040656,-500.0,0.0002002,2]
[340133168,1728669040665,-500.0,0.0002002,2]
[340133170,1728669040674,-500.0,0.0002002,2]
[340133172,1728669040683,-500.0,0.0002002,2]
[340133174,1728669040693,-500.0,0.0002002,2]
[340133176,1728669040702,-500.0,0.0002002,2]
[340133178,1728669040712,-500.0,0.0002002,2]
[340133180,1728669040721,-500.0,0.0002002,2]
[340133182,1728669040730,-500.0,0.0002002,2]
[340133183,1728669040739,-500.0,0.0002002,2]
[340133185,1728669040748,-500.0,0.0002002,2]
[340133187,1728669040758,-500.0,0.0002002,2]